bitfinex/quotes_SOLUSD_20241009
["timestamp","ask_amount","ask_price","bid_price","bid_amount"]
[1728464232182,6.9984,142.89,142.86,17.4991]
[1728464232482,15.8147,142.91,142.82,7.0017]
[1728464232664,6.9995,142.87,142.82,7.0017]
[1728464233382,15.8147,142.91,142.83,8.40120754]
[1728464233383,6.999,142.88,142.83,8.40120754]
[1728464236473,6.999,142.88,142.84,30.777684]
[1728464236673,6.999,142.88,142.85,1.39981475]
[1728464238272,6.999,142.88,142.84,30.777684]
[1728464239284,6.999,142.88,142.85,1.39983041]
[1728464242095,6.999,142.88,142.84,30.777684]
[1728464242974,6.999,142.88,142.83,30.777984]
[1728464244091,6.999,142.88,142.84,1.3998325]
[1728464244477,6.999,142.88,142.85,23.776884]
[1728464245581,6.999,142.88,142.84,23.776884]
[1728464245771,6.9985,142.89,142.85,7.0003]
[1728464250476,6.9985,142.89,142.86,1.39967408]
[1728464252589,6.9985,142.89,142.85,7.0003]
[1728464253678,6.9985,142.89,142.86,1.39967338]
[1728464258002,6.9985,142.89,142.85,7.0003]
[1728464258395,6.9985,142.89,142.86,1.39967546]
[1728464258703,26.998,142.9,142.86,8.39947546]
[1728464259080,6.9958,142.95,142.9,6.9975]
[1728464259300,16.6595,142.96,142.91,1.39923297]
[1728464259604,23.96768137,142.96,142.91,1.39923297]
[1728464259799,16.6595,142.96,142.91,1.39923297]
[1728464260112,6.9955,142.95,142.91,1.39923297]
[1728464261103,6.996,142.94,142.91,1.39923297]
[1728464263105,6.996,142.94,142.91,23.776884]
[1728464263308,6.996,142.94,142.92,1.39916137]
[1728464266894,6.996,142.94,142.91,23.776884]
[1728464267111,6.996,142.94,142.9,23.776884]
[1728464272118,6.996,142.94,142.91,1.3991772]
[1728464272915,6.996,142.94,142.9,23.776884]
[1728464273241,6.996,142.94,142.91,1.39917735]
[1728464274023,6.996,142.94,142.9,23.776884]
[1728464275921,6.9955,142.95,142.91,1.39917533]
[1728464276111,6.9959,142.94,142.91,1.39917533]
[1728464276290,16.6595,142.96,142.91,1.39917533]
[1728464276496,16.6595,142.96,142.93,6.996]
[1728464276697,16.6595,142.96,142.94,1.39899402]
[1728464277000,23.6545,142.96,142.92,23.776884]
[1728464277200,23.6545,142.96,142.93,1.39899874]
[1728464278016,6.9954,142.95,142.93,1.39899874]
[1728464279018,23.6546,142.96,142.93,1.39899874]
[1728464280818,23.6546,142.96,142.94,23.776884]
[1728464281024,23.6546,142.96,142.93,1.39899874]
[1728464281025,23.6546,142.96,142.95,1.39893697]
[1728464281219,23.6546,142.96,142.92,30.773684]
[1728464281220,23.6546,142.96,142.94,23.776884]
[1728464281522,6.9946,142.97,142.95,1.39893833]
[1728464282410,6.995,142.96,142.93,23.776884]
[1728464282719,6.995,142.96,142.94,1.39888388]
[1728464284498,6.995,142.96,142.93,23.776884]
[1728464284904,6.995,142.96,142.94,1.3989828]
[1728464289504,20.0,142.99,142.95,23.776884]
[1728464289714,6.9944,142.97,142.93,30.773184]
[1728464291329,6.994,142.98,142.95,23.776884]
[1728464292423,6.994,142.98,142.94,23.776884]
[1728464293904,6.995,142.96,142.93,23.776884]
[1728464294316,20.0,142.99,142.91,6.997]
[1728464294516,6.9962,142.94,142.89,24.4933]
[1728464294914,6.9965,142.93,142.89,17.4951]
[1728464295228,15.8914,142.96,142.87,6.6537]
[1728464295403,6.9969,142.92,142.87,13.6529]
[1728464296326,22.501,142.96,142.86,17.4992]
[1728464296327,6.9979,142.9,142.86,17.4992]
[1728464296509,6.9979,142.9,142.87,1.39955312]
[1728464296716,6.9979,142.9,142.86,24.499]
[1728464296912,6.9979,142.9,142.86,17.4992]
[1728464297114,15.1361,142.91,142.83,16.41239742]
[1728464297324,6.9984,142.89,142.84,7.0007]
[1728464298022,6.9984,142.89,142.85,7.0003]
[1728464298531,6.9984,142.89,142.86,23.776884]
[1728464300011,15.1361,142.91,142.86,23.776884]
[1728464300224,6.9988,142.88,142.84,23.776884]
[1728464302036,6.9984,142.89,142.84,30.777284]
[1728464302236,15.1361,142.91,142.85,1.39976792]
[1728464303113,6.9979,142.9,142.85,8.39996792]
[1728464307328,6.9979,142.9,142.85,7.0002]
[1728464307743,6.9965,142.93,142.89,6.9982]
[1728464307916,6.996,142.94,142.9,1.39932886]
[1728464308236,6.996,142.94,142.89,30.775084]
[1728464312315,6.996,142.94,142.9,6.9976]
[1728464313835,15.2321,142.97,142.91,8.39645051]
[1728464313836,6.9955,142.95,142.91,8.39645051]
[1728464314033,26.995,142.96,142.92,23.776884]
[1728464314233,20.0,142.96,142.93,1.39909246]
[1728464314413,20.0,142.96,142.93,6.9963]
[1728464314834,20.0,142.96,142.92,48.264384]
[1728464315041,22.2266,142.97,142.92,48.264384]
[1728464315345,6.9949,142.96,142.92,48.264384]
[1728464319126,6.9949,142.96,142.93,1.39907212]
[1728464322548,15.2321,142.97,142.93,1.39907212]
[1728464322847,6.9935,142.99,142.95,6.9951]
[1728464323029,6.9935,142.99,142.96,1.3987722]
[1728464325023,6.9935,142.99,142.95,1.39879782]
[1728464326228,22.3969,143.0,142.96,6.9949]
[1728464326535,22.3969,143.0,142.97,1.39869121]
[1728464327425,15.4038,143.0,142.97,1.39869121]
[1728464328528,22.3968,143.0,142.97,1.39869121]
[1728464336528,22.3968,143.0,142.96,6.9949]
[1728464337050,22.3968,143.0,142.95,30.772184]
[1728464339245,22.3968,143.0,142.96,1.398658]
[1728464341566,22.3968,143.0,142.96,8.393558]
[1728464346454,22.3968,143.0,142.95,23.776884]
[1728464346655,22.3968,143.0,142.95,30.772084]
[1728464348473,6.9935,142.99,142.95,30.772084]
[1728464349976,6.9935,142.99,142.96,1.39866325]
[1728464350753,22.3969,143.0,142.96,1.39866325]
[1728464350949,22.3969,143.0,142.97,23.776884]
[1728464351552,22.3969,143.0,142.98,1.39860312]
[1728464352176,22.3969,143.0,142.97,1.39860316]
[1728464354878,6.9935,142.99,142.95,30.772084]
[1728464356784,6.9947,142.97,142.94,23.776884]
[1728464357755,6.9947,142.97,142.93,23.776884]
[1728464359966,6.9947,142.97,142.95,23.776884]
[1728464360286,6.9947,142.97,142.96,1.39881706]
[1728464360576,6.9947,142.97,142.95,23.776884]
[1728464360764,6.9947,142.97,142.96,1.39881512]
[1728464361277,15.4038,143.0,142.96,1.39881512]
[1728464361480,22.3969,143.0,142.96,1.39881512]
[1728464362380,6.9935,142.99,142.96,1.39881512]
[1728464366978,6.9935,142.99,142.95,23.776884]
[1728464376700,6.994,142.98,142.95,23.776884]
[1728464379997,15.4038,143.0,142.95,23.776884]
[1728464380195,6.9936,142.99,142.95,30.772184]
[1728464382072,15.4038,143.0,142.94,23.776884]
[1728464382277,6.994,142.98,142.94,30.772484]
[1728464383099,15.4038,143.0,142.94,30.772484]
[1728464383307,6.9936,142.99,142.94,30.772484]
[1728464384597,22.3971,143.0,142.96,6.9949]
[1728464384795,6.9935,142.99,142.95,6.9954]
[1728464385005,6.9935,142.99,142.96,25.17554884]
[1728464385301,22.3969,143.0,142.96,32.17034884]
[1728464385506,15.4038,143.0,142.96,32.17034884]
[1728464386006,15.6225,143.03,142.98,23.776884]
[1728464386169,6.9911,143.04,143.0,6.9929]
[1728464386374,6.9911,143.04,143.01,1.39820466]
[1728464389087,6.9911,143.04,143.02,1.39819242]
[1728464389290,6.9911,143.04,143.01,23.776884]
[1728464389908,6.9911,143.04,143.02,1.39821175]
[1728464392712,6.9911,143.04,143.0,23.776884]
[1728464395310,6.9916,143.03,143.0,23.776884]
[1728464396486,6.9916,143.03,143.0,25.17517505]
[1728464396691,6.9911,143.04,143.0,25.17517505]
[1728464397096,16.0656,143.07,143.0,25.17517505]
[1728464397296,6.9905,143.06,143.0,32.16767505]
[1728464397601,6.9906,143.05,143.0,32.16767505]
[1728464398820,6.9906,143.05,143.0,30.769384]
[1728464399006,6.9912,143.04,143.0,23.776884]
[1728464400313,6.9905,143.06,143.01,6.9922]
[1728464400618,6.9905,143.06,143.02,1.39814543]
[1728464400790,6.9911,143.04,143.0,23.776884]
[1728464400998,16.0656,143.07,143.0,23.776884]
[1728464401204,6.9918,143.03,143.0,23.776884]
[1728464401615,17.4744,143.07,142.97,6.9943]
[1728464401924,6.992,143.02,142.98,1.39848082]
[1728464402623,6.9915,143.03,142.98,8.39228082]
[1728464403190,6.9915,143.03,142.99,23.776884]
[1728464403393,6.9915,143.03,143.0,1.39839079]
[1728464403807,6.9911,143.04,143.0,1.39839079]
[1728464404297,15.9604,143.06,142.99,30.769984]
[1728464404517,6.9915,143.03,142.99,23.776884]
[1728464404722,6.9929,143.01,142.95,17.4881]
[1728464404929,6.9929,143.01,142.96,6.9945]
[1728464405113,15.5012,143.02,142.96,6.9945]
[1728464405114,6.9931,143.0,142.96,6.9945]
[1728464405307,6.9936,142.99,142.95,17.4881]
[1728464405507,6.9939,142.98,142.94,6.9958]
[1728464405723,6.9938,142.99,142.94,6.9958]
[1728464407223,6.9938,142.99,142.95,23.776884]
[1728464408433,20.0,143.01,142.93,6.9963]
[1728464409716,20.0,143.01,142.94,23.776884]
[1728464410108,6.9946,142.97,142.94,23.776884]
[1728464411323,20.0,143.01,142.93,6.9963]
[1728464411324,6.995,142.96,142.93,23.776884]
[1728464412503,6.9945,142.97,142.93,25.17586549]
[1728464413237,15.8096,142.98,142.94,6.9958]
[1728464413408,15.8096,142.98,142.93,25.17586549]
[1728464413409,15.8096,142.98,142.95,8.39413781]
[1728464413615,26.9926,143.01,142.96,6.9948]
[1728464413817,26.9926,143.01,142.97,1.39871731]
[1728464414317,20.0,143.01,142.97,1.39871731]
[1728464414528,20.0,143.01,142.95,6.9953]
[1728464414728,6.9936,142.99,142.96,1.39872771]
[1728464416029,6.9936,142.99,142.95,6.9953]
[1728464416416,6.9936,142.99,142.95,23.776884]
[1728464416710,6.9936,142.99,142.96,1.39876042]
[1728464416904,6.9936,142.99,142.95,23.776884]
[1728464417422,6.9945,142.97,142.92,6.9965]
[1728464417617,6.9945,142.97,142.93,30.773084]
[1728464419023,6.9945,142.97,142.93,23.776884]
[1728464419338,6.995,142.96,142.93,23.776884]
[1728464420422,15.4774,142.97,142.91,17.4929]
[1728464420423,6.9955,142.95,142.91,24.4902]
[1728464421841,6.9955,142.95,142.92,23.776884]
[1728464424014,6.995,142.96,142.92,23.776884]
[1728464424217,6.995,142.96,142.93,1.39909344]
[1728464425947,6.9956,142.95,142.92,23.776884]
[1728464426124,6.9956,142.95,142.93,1.39909282]
[1728464426749,6.9956,142.95,142.92,23.776884]
[1728464428541,6.9956,142.95,142.93,1.39910141]
[1728464428725,6.9956,142.95,142.92,23.776884]
[1728464430132,6.9956,142.95,142.93,1.39910588]
[1728464430887,15.4774,142.97,142.93,1.39910588]
[1728464431052,6.9935,142.99,142.95,6.9953]
[1728464431229,6.9935,142.99,142.96,1.39876627]
[1728464431431,6.9933,143.0,142.96,1.39876627]
[1728464432026,6.9935,142.99,142.96,1.39876627]
[1728464433052,6.9935,142.99,142.96,23.776884]
[1728464433543,6.9931,143.0,142.97,1.39868708]
[1728464433722,15.2962,143.01,142.97,8.39298708]
[1728464434351,15.2962,143.01,142.98,23.776884]
[1728464434943,22.2888,143.01,142.98,23.776884]
[1728464435964,15.2962,143.01,142.99,1.39851488]
[1728464436168,6.9915,143.04,143.0,23.776884]
[1728464436467,15.2962,143.05,142.98,30.770784]
[1728464436663,6.9916,143.03,142.98,30.770784]
[1728464439777,15.2962,143.05,142.95,30.772184]
[1728464439778,6.993,143.0,142.95,30.772184]
[1728464440349,6.993,143.0,142.95,6.9953]
[1728464441051,6.9926,143.01,142.96,8.39339602]
[1728464441763,6.9926,143.01,142.97,23.776884]
[1728464442072,6.9926,143.01,142.98,1.39857122]
[1728464442371,15.2962,143.05,142.98,8.39207122]
[1728464442564,6.9921,143.02,142.98,8.39207122]
[1728464442756,6.9921,143.02,142.98,1.39857122]
[1728464443072,6.9926,143.01,142.97,30.771184]
[1728464443849,6.9926,143.01,142.98,1.3985561]
[1728464444575,6.9926,143.01,142.97,30.771184]
[1728464445176,6.9926,143.01,142.97,23.776884]
[1728464445378,6.9933,143.0,142.97,23.776884]
[1728464445670,6.9938,142.99,142.95,23.776884]
[1728464446472,6.9938,142.99,142.94,23.776884]
[1728464446648,6.9938,142.99,142.96,23.776884]
[1728464447069,6.9931,143.0,142.96,23.776884]
[1728464447778,6.9931,143.0,142.97,1.39865081]
[1728464449054,6.9931,143.0,142.98,23.776884]
[1728464449359,6.9931,143.0,142.96,30.771684]
[1728464449560,6.9931,143.0,142.97,1.39862461]
[1728464449759,6.9925,143.01,142.97,1.39862461]
[1728464450158,6.9925,143.01,142.98,23.776884]
[1728464450365,6.9925,143.01,142.99,1.39851748]
[1728464452381,6.9916,143.03,142.99,1.39851748]
[1728464452582,6.9916,143.03,143.0,23.776884]
[1728464453085,6.9921,143.02,143.0,1.39837756]
[1728464453776,6.9921,143.02,142.99,23.776884]
[1728464454482,6.9919,143.03,143.0,1.39839525]
[1728464456052,6.9911,143.04,143.0,1.39839525]
[1728464456877,15.2962,143.05,143.0,1.39839525]
[1728464457187,6.9915,143.03,143.0,1.39839525]
[1728464459586,6.992,143.02,142.98,23.776884]
[1728464459975,6.992,143.02,142.99,1.39839395]
[1728464460286,15.2962,143.05,143.0,23.776884]
[1728464460488,15.2962,143.05,143.01,1.39824314]
[1728464460788,6.9905,143.05,143.02,23.776884]
[1728464461089,16.1101,143.08,143.07,6.9895]
[1728464461264,16.1101,143.08,143.05,8.3882171]
[1728464461465,16.1101,143.08,143.05,25.8638171]
[1728464461664,15.3133,143.12,143.06,23.776884]
[1728464461864,6.9887,143.09,143.06,23.776884]
[1728464462085,6.9894,143.08,143.04,23.776884]
[1728464462286,6.9894,143.08,143.06,23.776884]
[1728464462496,6.9894,143.08,143.04,23.776884]
[1728464462790,6.9894,143.08,143.05,25.17469253]
[1728464462969,6.9887,143.09,143.05,25.17469253]
[1728464463385,6.9887,143.09,143.05,32.16519253]
[1728464463570,6.9877,143.11,143.06,6.9898]
[1728464463770,6.9877,143.11,143.07,1.39765929]
[1728464463966,6.9877,143.11,143.06,6.9898]
[1728464463967,6.9882,143.1,143.06,6.9898]
[1728464464288,6.9877,143.11,143.07,25.17451299]
[1728464464587,6.9877,143.11,143.07,30.766384]
[1728464465770,6.9877,143.11,143.08,1.39751605]
[1728464465989,15.3133,143.12,143.09,23.776884]
[1728464466168,15.3133,143.12,143.1,1.39741946]
[1728464466502,6.9867,143.13,143.1,1.39741946]
[1728464466791,6.9867,143.13,143.09,23.776884]
[1728464467567,6.9877,143.11,143.08,23.776884]
[1728464468169,6.9877,143.11,143.09,1.39749174]
[1728464468570,6.9872,143.12,143.09,1.39749174]
[1728464469088,6.9872,143.12,143.08,30.765884]
[1728464469289,6.9872,143.12,143.07,23.776884]
[1728464469581,6.9867,143.13,143.09,23.776884]
[1728464469766,6.9867,143.13,143.1,1.39730933]
[1728464470592,6.9867,143.13,143.09,30.765284]
[1728464471390,6.9861,143.14,143.09,30.765284]
[1728464471588,22.0964,143.16,143.11,30.764384]
[1728464471795,22.0964,143.16,143.12,1.39714738]
[1728464474195,22.0964,143.16,143.11,30.764384]
[1728464476775,22.0964,143.16,143.13,23.776884]
[1728464477891,22.0964,143.16,143.12,23.776884]
[1728464478575,6.9857,143.15,143.12,23.776884]
[1728464480201,6.9857,143.15,143.13,1.39708389]
[1728464480375,15.1108,143.16,143.13,1.39708389]
[1728464480570,15.1108,143.16,143.12,30.763984]
[1728464480571,15.1108,143.16,143.12,23.776884]
[1728464480778,22.0963,143.16,143.11,30.764384]
[1728464480991,22.0963,143.16,143.11,23.776884]
[1728464481188,22.0963,143.16,143.1,17.4695]
[1728464481189,22.0963,143.16,143.13,23.776884]
[1728464482198,22.0963,143.16,143.12,23.776884]
[1728464483191,21.88670766,143.16,143.12,23.776884]
[1728464483601,6.9861,143.14,143.11,23.776884]
[1728464485494,6.9858,143.15,143.11,23.776884]
[1728464485691,6.9861,143.14,143.11,23.776884]
[1728464486581,6.9861,143.14,143.12,1.39716559]
[1728464487095,14.90120766,143.16,143.12,1.39716559]
[1728464487096,6.9857,143.15,143.12,1.39716559]
[1728464487398,16.8136422,143.2,143.13,25.17398509]
[1728464487795,6.984,143.19,143.14,6.986]
[1728464488294,6.984,143.19,143.15,23.776884]
[1728464488888,6.984,143.19,143.15,30.762384]
[1728464489780,6.9842,143.18,143.15,23.776884]
[1728464490801,6.9842,143.18,143.14,17.4647]
[1728464490802,16.8136422,143.2,143.14,23.776884]
[1728464490990,16.8136422,143.2,143.11,23.5618]
[1728464491295,6.9855,143.16,143.12,6.9871]
[1728464491995,6.9855,143.16,143.11,17.4685]
[1728464492216,6.9855,143.16,143.11,24.4561]
[1728464493780,6.9855,143.16,143.12,23.776884]
[1728464493985,6.9855,143.16,143.11,24.4561]
[1728464493986,6.9862,143.14,143.08,23.6269]
[1728464494296,6.9862,143.14,143.09,6.9885]
[1728464495288,6.9862,143.14,143.1,23.776884]
[1728464498485,6.9867,143.13,143.1,23.776884]
[1728464498696,6.9867,143.13,143.11,1.39730332]
[1728464498881,6.9862,143.14,143.11,1.39730332]
[1728464500818,15.7305,143.15,143.1,30.764784]
[1728464501114,6.9852,143.16,143.13,23.776884]
[1728464501280,6.9852,143.16,143.14,1.39703186]
[1728464501792,6.9847,143.17,143.13,23.776884]
[1728464502301,15.8318,143.18,143.15,23.776884]
[1728464502808,15.8318,143.18,143.16,1.39682684]
[1728464504721,15.8318,143.18,143.15,23.776884]
[1728464504922,0.8569422,143.2,143.15,36.93773967]
[1728464505088,0.8569422,143.2,143.19,23.776884]
[1728464505513,0.8569422,143.2,143.19,30.760584]
[1728464506414,0.8569422,143.2,143.19,32.15691085]
[1728464507614,0.8569422,143.2,143.19,30.760584]
[1728464508908,0.8569422,143.2,143.19,23.776884]
[1728464511298,0.8569422,143.2,143.18,23.776884]
[1728464512099,0.8569422,143.2,143.19,25.17339301]
[1728464512920,0.8569422,143.2,143.19,23.776884]
[1728464513121,0.8569422,143.2,143.19,25.17333916]
[1728464513497,0.8569422,143.2,143.19,23.776884]
[1728464515100,0.8569422,143.2,143.19,32.1570333]
[1728464515723,0.8569422,143.2,143.19,30.760584]
[1728464518629,0.8569422,143.2,143.19,23.776884]
[1728464521234,0.8569422,143.2,143.17,6.9845]
[1728464521424,7.8402422,143.2,143.17,23.776884]
[1728464522201,0.8569422,143.2,143.16,17.4618]
[1728464522407,6.9842,143.18,143.13,24.4529]
[1728464522603,6.9838,143.19,143.14,6.986]
[1728464522819,6.9838,143.19,143.15,1.39683508]
[1728464523015,7.8401422,143.2,143.15,1.39683508]
[1728464523329,0.8569422,143.2,143.16,6.985]
[1728464523713,0.8569422,143.2,143.17,1.3966689]
[1728464524403,0.8569422,143.2,143.17,23.776884]
[1728464524616,0.8569422,143.2,143.18,1.39664903]
[1728464524934,0.8569422,143.2,143.17,23.776884]
[1728464526437,0.8569422,143.2,143.18,1.39665856]
[1728464526634,0.8569422,143.2,143.18,8.38075856]
[1728464527210,0.8569422,143.2,143.19,23.776884]
[1728464528732,0.8569422,143.2,143.18,23.776884]
[1728464531042,0.8569422,143.2,143.17,23.776884]
[1728464535219,0.8569422,143.2,143.18,23.776884]
[1728464535420,0.8569422,143.2,143.18,25.17342899]
[1728464535618,0.8569422,143.2,143.18,23.776884]
[1728464536034,0.8569422,143.2,143.19,25.17337812]
[1728464536244,0.8569422,143.2,143.19,23.776884]
[1728464538328,0.8569422,143.2,143.18,23.776884]
[1728464538527,0.8569422,143.2,143.18,30.760884]
[1728464539644,0.8569422,143.2,143.19,32.15706756]
[1728464539845,0.8569422,143.2,143.19,30.760584]
[1728464540648,0.8569422,143.2,143.18,30.761084]
[1728464541344,7.8402422,143.2,143.17,17.4612]
[1728464541552,6.9843,143.18,143.14,24.4508]
[1728464541722,0.8569422,143.2,143.15,8.38243723]
[1728464541922,7.8405422,143.2,143.15,6.9856]
[1728464543163,7.8405422,143.2,143.16,23.776884]
[1728464544454,7.8405422,143.2,143.16,17.4622]
[1728464544455,0.8569422,143.2,143.16,17.4622]
[1728464544751,0.8569422,143.2,143.18,6.984]
[1728464545046,0.8569422,143.2,143.19,25.17330417]
[1728464545253,0.8569422,143.2,143.19,32.15700417]
[1728464547034,0.8569422,143.2,143.19,30.760584]
[1728464549048,0.8569422,143.2,143.19,32.15693213]
[1728464549853,0.8569422,143.2,143.19,30.760584]
[1728464550657,0.8569422,143.2,143.19,23.776884]
[1728464552454,0.8569422,143.2,143.18,24.4439]
[1728464552455,0.8569422,143.2,143.17,6.9846]
[1728464552645,7.8402422,143.2,143.15,24.449]
[1728464553459,6.9839,143.19,143.15,17.4638]
[1728464553758,6.9839,143.19,143.15,24.4493]
[1728464554651,0.8569422,143.2,143.18,6.9841]
[1728464554868,0.8569422,143.2,143.19,23.776884]
[1728464555864,0.8569422,143.2,143.19,25.17339466]
[1728464556160,0.8569422,143.2,143.19,23.776884]
[1728464556668,0.8569422,143.2,143.19,32.15709425]
[1728464558155,0.8569422,143.2,143.19,30.760584]
[1728464562865,0.8569422,143.2,143.18,30.760884]
[1728464563249,0.8569422,143.2,143.18,23.776884]
[1728464563867,0.8569422,143.2,143.16,6.9851]
[1728464565752,0.8569422,143.2,143.17,23.776884]
[1728464567257,0.8569422,143.2,143.18,1.39669814]
[1728464569351,0.8569422,143.2,143.18,6.984]
[1728464570653,0.8569422,143.2,143.19,1.39656581]
[1728464571054,0.8569422,143.2,143.18,6.984]
[1728464571468,0.8569422,143.2,143.19,1.39656265]
[1728464571853,0.8569422,143.2,143.18,6.984]
[1728464572051,0.8569422,143.2,143.19,1.39656743]
[1728464572765,0.8569422,143.2,143.18,6.984]
[1728464573851,0.8569422,143.2,143.19,1.39652239]
[1728464574452,0.8569422,143.2,143.19,25.17340639]
[1728464574656,0.8569422,143.2,143.19,32.15710639]
[1728464575553,0.8569422,143.2,143.19,30.760584]
[1728464578762,0.8569422,143.2,143.19,32.15695435]
[1728464579076,0.8569422,143.2,143.19,32.15695221]
[1728464581002,0.8569422,143.2,143.19,62.15695221]
[1728464581564,0.8569422,143.2,143.19,32.15695221]
[1728464582184,0.8569422,143.2,143.19,30.760584]
[1728464582562,0.8569422,143.2,143.19,32.15691245]
[1728464585089,0.8569422,143.2,143.19,30.760584]
[1728464587579,0.8569422,143.2,143.18,17.4599]
[1728464589090,0.8569422,143.2,143.18,18.85647103]
[1728464589673,0.8569422,143.2,143.18,25.84047103]
[1728464589871,0.8569422,143.2,143.19,30.760584]
[1728464591281,0.8569422,143.2,143.16,6.985]
[1728464592368,7.8402422,143.2,143.16,6.985]
[1728464593769,0.8569422,143.2,143.16,6.985]
[1728464593979,0.8569422,143.2,143.17,8.38130157]
[1728464594284,0.8569422,143.2,143.17,6.9846]
[1728464594594,0.8569422,143.2,143.18,23.776884]
[1728464594799,0.8569422,143.2,143.17,6.9846]
[1728464594800,0.8569422,143.2,143.16,23.776884]
[1728464595089,7.8405422,143.2,143.16,23.776884]
[1728464595589,6.9838,143.19,143.16,23.776884]
[1728464595911,0.8569422,143.2,143.16,23.776884]
[1728464596090,0.8569422,143.2,143.17,1.39674432]
[1728464596270,0.8569422,143.2,143.16,23.776884]
[1728464596473,0.8569422,143.2,143.17,6.9845]
[1728464596786,0.8569422,143.2,143.18,6.984]
[1728464596991,0.8569422,143.2,143.19,1.39666589]
[1728464597769,0.8569422,143.2,143.18,6.984]
[1728464597972,0.8569422,143.2,143.17,17.4613]
[1728464598171,0.8569422,143.2,143.17,24.4458]
[1728464599671,0.8569422,143.2,143.19,6.9837]
[1728464599886,0.8569422,143.2,143.19,30.760584]
[1728464600189,0.8569422,143.2,143.18,30.760984]
[1728464600366,0.8569422,143.2,143.19,23.776884]
[1728464603187,0.8569422,143.2,143.17,24.4459]
[1728464603588,0.8569422,143.2,143.17,17.4613]
[1728464603802,0.8569422,143.2,143.14,24.4505]
[1728464603971,0.8569422,143.2,143.15,30.762484]
[1728464604170,7.8402422,143.2,143.15,30.762484]
[1728464606105,23.0668,143.19,143.15,30.762484]
[1728464606593,23.0668,143.19,143.15,23.776884]
[1728464608688,16.083,143.19,143.15,32.15928657]
[1728464609181,16.083,143.19,143.15,30.762384]
[1728464609381,16.083,143.19,143.15,32.15928613]
[1728464609597,16.083,143.19,143.15,30.762384]
[1728464610092,16.083,143.19,143.14,17.4649]
[1728464610301,16.083,143.19,143.14,24.4509]
[1728464610302,6.9842,143.18,143.14,24.4509]
[1728464610516,6.9842,143.18,143.14,17.4649]
[1728464611015,16.083,143.19,143.14,17.4649]
[1728464611304,6.9847,143.17,143.14,17.4649]
[1728464611474,6.9847,143.17,143.13,6.9865]
[1728464612877,6.9847,143.17,143.12,30.763884]
[1728464613290,6.9847,143.17,143.12,32.16104776]
[1728464613794,6.9847,143.17,143.12,30.763884]
[1728464614197,6.9847,143.17,143.13,8.38376199]
[1728464614892,6.9847,143.17,143.13,6.9866]
[1728464615786,6.9847,143.17,143.13,8.38375787]
[1728464616395,6.9847,143.17,143.13,6.9866]
[1728464620692,16.083,143.19,143.13,6.9866]
[1728464621101,6.9847,143.17,143.13,6.9866]
[1728464623602,6.9847,143.17,143.13,8.38375622]
[1728464623910,6.9843,143.18,143.14,6.986]
[1728464625015,16.083,143.19,143.15,18.86059095]
[1728464625880,16.083,143.19,143.16,1.39689794]
[1728464626100,16.083,143.19,143.16,6.9851]
[1728464627406,16.083,143.19,143.16,8.38199833]
[1728464627701,16.083,143.19,143.17,6.9843]
[1728464627906,0.8569422,143.2,143.17,6.9843]
[1728464640497,0.8569422,143.2,143.16,30.761884]
[1728464643213,0.8569422,143.2,143.17,1.39675063]
[1728464643594,0.8569422,143.2,143.18,30.760984]
[1728464645818,0.8569422,143.2,143.19,1.39660604]
[1728464646195,0.8569422,143.2,143.18,30.760984]
[1728464647415,0.8569422,143.2,143.18,32.15758942]
[1728464647712,0.8569422,143.2,143.19,43.92143967]
[1728464648117,0.8569422,143.2,143.19,30.760584]
[1728464651117,0.8569422,143.2,143.19,43.92143967]
[1728464654012,0.8569422,143.2,143.19,30.760584]
[1728464658631,0.8569422,143.2,143.17,17.4612]
[1728464658830,6.9843,143.18,143.14,17.4647]
[1728464659016,0.8569422,143.2,143.15,6.9856]
[1728464660004,0.8569422,143.2,143.14,17.4647]